{"text_format":"2","workbook":"xlsx","n_sheets":1,"sheets":["Programme matchs "],"not_rendered":{"charts":0,"images":0,"macros":0,"external_links":0,"defined_names":1,"comments":0,"pivot_tables":0},"unopened":[],"bounds":{"document_bytes":16777216,"sheet_cells":100000,"run_cost":"one","rows_first":2000,"rows_last":500,"rows_between":2000,"halvings":0,"cell_chars":16384,"cell_head_chars":4096},"cells_cut":0,"cells_raw":0,"read":"whole","date_system":"1900"}

{"sheet":"Programme matchs ","index":0,"n_rows":55,"n_cols":26,"rows_kept":55,"cut":false,"hidden":false,"merged":[[14,7,14,15],[21,7,21,15],[21,17,21,25],[28,7,28,15],[0,7,0,15],[0,17,0,25],[1,0,1,5],[7,7,7,15],[7,17,7,25],[10,0,10,5],[14,17,14,25]]}
["Date ","Heure","Terrain  ","Equipe domicile","Score","Equipe extérieur",null,"Poule A",{"$nulls":9},"Poule B "]
["Semaine du 02/06/2025",{"$nulls":6},"Team","Points","J","G","N","P","Bp","Bc","+/-",null,"Team","Points","J","G","N","P","Bp","Bc","+/-"]
["mardi 03/06","19h30","Bobigny N°3","FC BLUE LOCK","3-0F","LOS MAGNIFICOS",null,"FC BLUE LOCK",8.0,2.0,2.0,0.0,0.0,14.0,0.0,{"$f":"N3-O3","v":14},null,"PARIS CLICHY FC B",8.0,2.0,2.0,0.0,0.0,14.0,9.0,{"$f":"X3-Y3","v":5}]
["mardi 03/06","19h30","Bobigny N°3","FC FURET","2025-03-05","KEVIN FC",null,"LOS MAGNIFICOS",1.0,2.0,0.0,0.0,2.0,2.0,7.0,-5,null,"ETOILE ROUGE DE PARIS",1.0,1.0,0.0,0.0,1.0,4.0,8.0,-4]
["mardi 03/06","20h30","Bobigny N°5","ETOILE ROUGE BARBES","2025-06-07","FC ZERO CARDIO",null,"FURET FC",5.0,2.0,1.0,0.0,1.0,5.0,14.0,-9,null,"LA DISTILLERIE A",4.0,1.0,1.0,0.0,0.0,8.0,5.0,3]
["mercredi 04/06 ","19h30","Tremblay N°6","OCA UNITED","2025-02-06","FC BOIS DE VINCENNES",null,"KEVIN FC",5.0,2.0,1.0,0.0,1.0,7.0,5.0,2,null,"FOOTBALL SQUAD",2.0,2.0,0.0,0.0,2.0,10.0,14.0,-4]
["mercredi 04/06 ","20h00","Bobigny N°5","AL SACANA","0F-3","TEAM Z FOOTBALL CLUB "]
["Jeudi 05/06","21h00","Bobigny N°3","ETOILE ROUGE DE PARIS","2025-08-04","PARIS CLICHY FC B",null,"Poule C",{"$nulls":9},"Poule D"]
["Vendredi 06/06","19H45","Léon Biancotto","FOOTBALL SQUAD","2025-08-05","LA DISTILLERIE FC A",null,"Team","Points","J","G","N","P","Bp","Bc","+/-",null,"Team","Points","J","G","N","P","Bp","Bc","+/-"]
["Vendredi 06/06","21h30","Chatillon","FC BRANQUIGNOL","2025-06-04","FANTASISTA FC B",null,"FANTASISTA FC B",8.0,2.0,2.0,0.0,0.0,13.0,8.0,{"$f":"N10-O10","v":5},null,"OCA UNITED",8.0,2.0,2.0,0.0,0.0,9.0,2.0,{"$f":"X10-Y10","v":7}]
["                         Semaine du 09/06/2025",{"$nulls":6},"FC BRANQUIGNOL",5.0,2.0,1.0,0.0,1.0,7.0,6.0,1,null,"FC BOIS DE VINCENNES",5.0,3.0,1.0,0.0,2.0,5.0,9.0,-4]
["mardi 10/06","19h30","Bobigny N°3","FC BLUE LOCK","11-0","FC FURET",null,"ETOILE ROUGE BARBES",4.0,2.0,1.0,0.0,1.0,7.0,9.0,-2,null,"AL SACANA",4.0,3.0,1.0,0.0,2.0,3.0,6.0,-3]
["mardi 10/06","19h30","Bobigny N°3","LOS MAGNIFICOS","2025-04-02","KEVIN FC",null,"FC ZERO CARDIO",2.0,2.0,0.0,0.0,2.0,10.0,14.0,-4,null,"TEAM Z FOOTBALL CLUB ",4.0,2.0,1.0,0.0,1.0,3.0,3.0,0]
["mardi 10/06","19h30","Bobigny N°2","PARIS CLICHY FC A","2025-03-08","PARIS LUTECE FC B"]
["mardi 10/06","19h30","Bobigny N°2","ATLETICO BATIGNOLLES C","2025-02-06","FC TILKITACOS FC",null,"Poule E",{"$nulls":9},"Poule F"]
["mardi 10/06","20h45","Racine","PARIS CLICHY FC B","2025-05-06","FOOTBALL SQUAD",null,"Team","Points","J","G","N","P","Bp","Bc","+/-",null,"Team","Points","J","G","N","P","Bp","Bc","+/-"]
["mercredi 11/06","19h30","Bobigny N°1","PAZIZOU FC A ","2025-04-07","PARIS OUEST 17",null,"PARIS CLICHY FC A",4.0,1.0,1.0,0.0,0.0,8.0,3.0,{"$f":"N17-O17","v":5},null,"PARIS AZTECAS FC B",8.0,2.0,2.0,0.0,0.0,6.0,0.0,{"$f":"X17-Y17","v":6}]
["mercredi 11/06 ","19h30","Bobigny N°2","PARIS AZTECAS FC B","3-0","PARIS LUTECE FC C",null,"PARIS LUTECE FC B",1.0,1.0,0.0,0.0,1.0,3.0,8.0,-5,null,"PARIS LUTECE FC C",0.0,1.0,0.0,0.0,1.0,0.0,3.0,-3]
["mercredi 11/06 ","19h30","Bobigny N°2","LES DUCS D'ORLEANS","2025-03-04","NOUVELLE FAMILLE PARISIENNE",null,"PAZIZOU FC A",4.0,1.0,1.0,0.0,0.0,7.0,4.0,3,null,"LES DUCS D'ORLEANS",4.0,2.0,1.0,0.0,1.0,4.0,6.0,-2]
["mercredi 11/06","19h30","Tremblay N°8","OCA UNITED","3-0F","AL SACANA",null,"PARIS OUEST 17",1.0,1.0,0.0,0.0,1.0,4.0,7.0,-3,null,"NOUVELLE FP",1.0,1.0,0.0,0.0,1.0,3.0,4.0,-1]
["mercredi 11/06 ","19h30","Tremblay N°8","FC BOIS DE VINCENNES","3-0F","TEAM Z FOOTBALL CLUB "]
["Jeudi 12/06","21h00","Bobigny N°3","ETOILE ROUGE DE PARIS",null,"LA DISTILLERIE FC A",null,"Poule G",{"$nulls":9},"Poule H"]
["Vendredi 13/06","20h30","Bobigny N°2","FC BRANQUIGNOL","3-0F","ETOILE ROUGE BARBES",null,"Team","Points","J","G","N","P","Bp","Bc","+/-",null,"Team","Points","J","G","N","P","Bp","Bc","+/-"]
["Vendredi 13/06","21h30","Chatillon","FC ZERO CARDIO","2025-07-04","FANTASISTA FC B",null,"ATLETICO BATIGNOLLES B",{"$nulls":9},"ATLETICO BATIGNOLLES C",4.0,1.0,1.0,0.0,0.0,6.0,2.0,{"$f":"X24-Y24","v":4}]
[null,null,null,"Semaine du 16/06/2025",null,null,null,"MINT TEA UNITED",{"$nulls":9},"FC TIKITACOS",1.0,1.0,0.0,0.0,1.0,2.0,6.0,-4]
["lundi 16/06 ","19h45","Max Roussié","ATLETICO BATIGNOLLES B","reporté ","MINT TEA UNITED ",null,"SECOURS CATHOLIQUE ",{"$nulls":9},"AS CEB B"]
["lundi 16/06 ","19h45","Max Roussié","PARIS LUTECE FC C",null,"NOUVELLE FAMILLE PARISIENNE",null,"JOGA BONITO",{"$nulls":9},"PETIT PIMENT"]
["mardi 17/06 ","19h30","Bobigny N°2","OCA UNITED",null,"TEAM Z FOOTBALL CLUB "]
["mardi 17/06 ","19h30","Bobigny N°2","FC BOIS DE VINCENNES","0F-3","AL SACANA",null,"Poule I"]
["mardi 17/06 ","19h30","Bobigny N°3","FC BLUE LOCK",null,"KEVIN FC",null,"Team","Points","J","G","N","P","Bp","Bc","+/-"]
["mardi 17/06 ","19h30","Bobigny N°3","FC FURET",null,"LOS MAGNIFICOS",null,"FC PRESQUE"]
["Mardi 17/06","20h30","Bobigny N°5","SECOURS CATHOLIQUE CEDRE",null,"JOGA BONITO",null,"LES FOOTEUF"]
["Mardi 17/06","20h30","Bobigny N°5","BLACK CATS","0F-3","AIGLES DE CARTHAGE",null,"CLAN TETARD"]
["mercredi 18/06","19h30","Bobigny N°1","PARIS LUTECE FC B",null,"PARIS OUEST 17",null,"BLACK CATS",0.0,2.0,0.0,0.0,2.0,0.0,6.0,{"$f":"N34-O34","v":-6}]
["mercredi 18/06","19h30","Bobigny N°2","PARIS CLICHY FC A",null,"PAZIZOU FC A ",null,"AIGLES DE CATHAGE",4.0,1.0,1.0,0.0,0.0,3.0,0.0,3]
["mercredi 18/06","19h30","Bobigny N°2","PARIS CLYCHY B",null,"LA DISTILLERIE FC A",null,"ST MANDE SUD FC",4.0,1.0,1.0,0.0,0.0,3.0,0.0,3]
["mercredi 18/06","21H30","Chatillon","ETOILE ROUGE BARBES",null,"FANTASISTA FC B"]
["Jeudi 19/06","21h00","Léon Biancotto","PARIS AZTECAS FC B","3-0F","LES DUCS D'ORLEANS"]
["Jeudi 19/06","21h00","Bobigny N°5","FC PRESQUE",null,"CLAN TETARD"]
["Jeudi 19/06","21h00","Bobigny N°3","ETOILE ROUGE DE PARIS",null,"FOOTBALL SQUAD"]
["Jeudi 19/06","21h00","Bobigny N°5","LES FOOTEUF",null,"FC SAINT MANDE SUD"]
["Vendredi 20/06","21h30","Chatillon","FC BRANQUIGNOL",null,"FC ZERO CARDIO"]
["Vendredi 20/06","20h30","Bobigny N°2","AS CEB B",null,"AS PETIT PIMENT"]
[null,null,null,"Semaine du 23/06/2025"]
["lundi 23/06 ","19h45","Max Roussié","PARIS LUTECE FC C",null,"LES DUCS D'ORLEANS"]
["lundi 23/06 ","19h45","Max Roussié","PARIS AZTECAS FC B",null,"NOUVELLE FAMILLE PARISIENNE"]
["Mardi 24/06","20h30","Bobigny N°5","BLACK CATS","0F-3","FC SAINT MANDE SUD"]
["mercredi 25/06","20h00","Bobigny N°1","MINT TEA UNITED",null,"JOGA BONITO"]
["mercredi 25/06","19h30","Bobigny N°2","ATLETICO BATIGNOLLES FC C",null,"PETIT PIMENT"]
["mercredi 25/06","19h30","Bobigny N°2","FC TIKITACOS",null,"AS CEB B"]
["mercredi 25/06","21h00","Ladoumègue","ATLETICO BATIGNOLLES B",null,"SECOURS CATHOLIQUE CEDRE"]
["mercredi 25/06","21h00","Maryse Hilsz","PARIS LUTECE FC B",null,"PAZIZOU FC A "]
["mercredi 25/06","21h00","Bobigny N°2","PARIS CLICHY FC A",null,"PARIS OUEST 17"]
["Jeudi 26/06","21h00","Bobigny N°5","FC PRESQUE",null,"LES FOOTEUF"]
["Jeudi 26/06","21h00","Léon Biancotto","CLAN TETARD",null,"AIGLES DE CARTHAGE"]